bitfinex/quotes_BTCUSD_20250608
["timestamp","ask_amount","ask_price","bid_price","bid_amount"]
[1749398209539,1.61051736,106100.0,106090.0,7.28203113]
[1749398209741,1.62815379,106100.0,106090.0,7.28203113]
[1749398209956,1.62153979,106100.0,106090.0,7.28203113]
[1749398210158,1.6039037,106100.0,106090.0,7.28203113]
[1749398210375,1.62815343,106100.0,106090.0,7.28203113]
[1749398210586,1.62153988,106100.0,106090.0,7.28203113]
[1749398210795,1.63877149,106100.0,106090.0,7.28203113]
[1749398211263,1.6497941,106100.0,106090.0,7.28203113]
[1749398211472,1.65640767,106100.0,106090.0,7.28203113]
[1749398211679,1.63215792,106100.0,106090.0,7.28203113]
[1749398211886,1.63877149,106100.0,106090.0,7.28203113]
[1749398212080,1.64979411,106100.0,106090.0,7.28203113]
[1749398212316,1.63877149,106100.0,106090.0,7.28203113]
[1749398212666,1.6497941,106100.0,106090.0,7.28203113]
[1749398212876,1.65640767,106100.0,106090.0,7.28203113]
[1749398213190,1.63877149,106100.0,106090.0,7.28203113]
[1749398213390,1.63215792,106100.0,106090.0,7.28203113]
[1749398213740,1.65640696,106100.0,106090.0,7.28203113]
[1749398213944,1.63215792,106100.0,106090.0,7.28203113]
[1749398214276,1.63877084,106100.0,106090.0,7.28203113]
[1749398214478,1.63215792,106100.0,106090.0,7.28203113]
[1749398214907,1.64979238,106100.0,106090.0,7.28203113]
[1749398215105,1.6564053,106100.0,106090.0,7.28203113]
[1749398215316,1.64979238,106100.0,106090.0,7.28203113]
[1749398215505,1.64979156,106100.0,106090.0,7.28203113]
[1749398215706,1.63215792,106100.0,106090.0,7.28203113]
[1749398215912,1.64978541,106100.0,106090.0,7.28203113]
[1749398216084,1.63876686,106100.0,106090.0,7.28203113]
[1749398216308,1.65639062,106100.0,106090.0,7.28203113]
[1749398216650,1.65639059,106100.0,106090.0,7.28203113]
[1749398216851,1.63215792,106100.0,106090.0,7.28203113]
[1749398216986,1.63876687,106100.0,106090.0,7.28203113]
[1749398217188,1.65639073,106100.0,106090.0,7.28203113]
[1749398217415,1.65645268,106100.0,106090.0,7.28203113]
[1749398217819,1.63215792,106100.0,106090.0,7.28203113]
[1749398218224,1.6387848,106100.0,106090.0,7.28203113]
[1749398218428,1.63215792,106100.0,106090.0,7.28203113]
[1749398218625,1.63878507,106100.0,106090.0,7.28203113]
[1749398218823,1.65645785,106100.0,106090.0,7.28203113]
[1749398219005,1.6387852,106100.0,106090.0,7.28203113]
[1749398219216,1.63215792,106100.0,106090.0,7.28203113]
[1749398219460,1.64983048,106100.0,106090.0,7.28203113]
[1749398219670,1.73180415,106100.0,106090.0,7.26673113]
[1749398219899,1.73180415,106100.0,106090.0,7.25143113]
[1749398219900,1.80301281,106100.0,106090.0,7.25143113]
[1749398220043,1.6642112,106100.0,106090.0,7.28303113]
[1749398220239,1.64034647,106100.0,106090.0,7.28303113]
[1749398220450,1.64034661,106100.0,106090.0,7.28303113]
[1749398220652,1.6469733,106100.0,106090.0,7.28303113]
[1749398221060,1.64697321,106100.0,106090.0,7.28303113]
[1749398221264,1.62267576,106100.0,106090.0,7.28303113]
[1749398221466,1.62930228,106100.0,106090.0,7.28303113]
[1749398221670,1.64697163,106100.0,106090.0,7.28303113]
[1749398221893,1.6403454,106100.0,106090.0,7.28303113]
[1749398222096,1.62930176,106100.0,106090.0,7.28303113]
[1749398222293,1.62930164,106100.0,106090.0,7.28303113]
[1749398222494,1.6469699,106100.0,106090.0,7.28303113]
[1749398222714,1.6293014,106100.0,106090.0,7.28303113]
[1749398222942,1.64034121,106100.0,106090.0,7.28303113]
[1749398223147,1.64696458,106100.0,106090.0,7.28303113]
[1749398223356,1.64034012,106100.0,106090.0,7.28303113]
[1749398223570,1.62929988,106100.0,106090.0,7.28303113]
[1749398223762,1.64033953,106100.0,106090.0,7.28303113]
[1749398223964,1.64696303,106100.0,106090.0,7.28303113]
[1749398224172,1.6292977,106100.0,106090.0,7.28303113]
[1749398224345,1.64033344,106100.0,106090.0,7.28303113]
[1749398224550,1.62267576,106100.0,106090.0,7.28303113]
[1749398224740,1.64695427,106100.0,106090.0,7.28303113]
[1749398224948,1.62267576,106100.0,106090.0,7.28303113]
[1749398225231,1.6469524,106100.0,106090.0,7.28303113]
[1749398225401,1.62267576,106100.0,106090.0,7.28303113]
[1749398225561,1.62929547,106100.0,106090.0,7.28303113]
[1749398225764,1.62267576,106100.0,106090.0,7.28303113]
[1749398225986,1.64694964,106100.0,106090.0,7.28303113]
[1749398226410,1.64695378,106100.0,106090.0,7.28303113]
[1749398226620,1.62267576,106100.0,106090.0,7.28303113]
[1749398226937,1.629286,106100.0,106090.0,7.28303113]
[1749398227262,1.66589268,106100.0,106090.0,7.28303113]
[1749398227472,1.66589266,106100.0,106090.0,7.28303113]
[1749398227898,1.68351982,106100.0,106090.0,7.28303113]
[1749398228099,1.67690963,106100.0,106090.0,7.28303113]
[1749398228303,1.68352009,106100.0,106090.0,7.28303113]
[1749398228638,1.68352107,106100.0,106090.0,7.28303113]
[1749398228831,1.67691074,106100.0,106090.0,7.28303113]
[1749398229073,1.62267576,106100.0,106090.0,7.28303113]
[1749398229351,1.65928246,106100.0,106090.0,7.28303113]
[1749398229566,1.64691473,106100.0,106090.0,7.28303113]
[1749398229768,1.68352143,106100.0,106090.0,7.28303113]
[1749398229989,1.67691182,106100.0,106090.0,7.28303113]
[1749398230190,1.65928246,106100.0,106090.0,7.28303113]
[1749398230404,1.683524,106100.0,106090.0,7.28303113]
[1749398230617,1.68352429,106100.0,106090.0,7.28303113]
[1749398230819,1.68352516,106100.0,106090.0,7.28303113]
[1749398231441,1.67691344,106100.0,106090.0,7.28303113]
[1749398231643,1.65928246,106100.0,106090.0,7.28303113]
[1749398231849,1.68352693,106100.0,106090.0,7.28303113]
[1749398232052,1.68352696,106100.0,106090.0,7.28303113]
[1749398232224,1.68352695,106100.0,106090.0,7.28303113]
[1749398232433,1.67691483,106100.0,106090.0,7.28303113]
[1749398232631,1.65928246,106100.0,106090.0,7.28303113]
[1749398232831,1.66589459,106100.0,106090.0,7.28303113]
[1749398233131,1.68352695,106100.0,106090.0,7.28303113]
[1749398233274,1.67032303,106100.0,106090.0,7.28303113]
[1749398233482,1.67693516,106100.0,106090.0,7.28303113]
[1749398233683,1.67032303,106100.0,106090.0,7.28303113]
[1749398233871,1.67693516,106100.0,106090.0,7.28303113]
[1749398234304,1.67694193,106100.0,106090.0,7.28203113]
[1749398234704,1.65269068,106100.0,106090.0,7.28203113]
[1749398235034,1.67033086,106100.0,106090.0,7.28203113]
[1749398235243,1.67694587,106100.0,106090.0,7.28203113]
[1749398235449,1.65269068,106100.0,106090.0,7.28203113]
[1749398235648,1.66748265,106100.0,106090.0,7.28203113]
[1749398235897,1.67409774,106100.0,106090.0,7.28203113]
[1749398236414,1.67409775,106100.0,106090.0,7.28203113]
[1749398236536,1.65645749,106100.0,106090.0,7.28203113]
[1749398236750,1.65645746,106100.0,106090.0,7.28203113]
[1749398236949,1.67409764,106100.0,106090.0,7.28203113]
[1749398237148,1.66748257,106100.0,106090.0,7.28203113]
[1749398237473,1.64984239,106100.0,106090.0,7.28203113]
[1749398237660,1.67409766,106100.0,106090.0,7.28203113]
[1749398237865,1.66748259,106100.0,106090.0,7.28203113]
[1749398238085,1.67409768,106100.0,106090.0,7.28203113]
[1749398238487,1.6674826,106100.0,106090.0,7.28203113]
[1749398238748,1.67409762,106100.0,106090.0,7.28203113]
[1749398238944,1.66748256,106100.0,106090.0,7.28203113]
[1749398239102,1.67410589,106100.0,106090.0,7.28203113]
[1749398239308,1.64984239,106100.0,106090.0,7.28203113]
[1749398240143,1.66750458,106100.0,106090.0,7.28203113]
[1749398240565,1.65646571,106100.0,106090.0,7.28203113]
[1749398240771,1.64984239,106100.0,106090.0,7.28203113]
[1749398240975,1.67412799,106100.0,106090.0,7.28203113]
[1749398241178,1.66750482,106100.0,106090.0,7.28203113]
[1749398241389,1.65646601,106100.0,106090.0,7.28203113]
[1749398241583,1.65646611,106100.0,106090.0,7.28203113]
[1749398241816,1.66750566,106100.0,106090.0,7.28203113]
[1749398242012,1.64984239,106100.0,106090.0,7.28203113]
[1749398242160,1.66750565,106100.0,106090.0,7.28060534]
[1749398242366,1.64984239,106100.0,106090.0,7.28060534]
[1749398242575,1.66750541,106100.0,106090.0,7.28060534]
[1749398242788,1.67413077,106100.0,106090.0,7.28060534]
[1749398242991,1.66750667,106100.0,106090.0,7.28060534]
[1749398243293,1.67413107,106100.0,106090.0,7.28060534]
[1749398243485,1.65646657,106100.0,106090.0,7.28060534]
[1749398243686,1.65646657,106100.0,106090.0,7.34045212]
[1749398243918,1.67413109,106100.0,106090.0,7.28060534]
[1749398244118,1.66750685,106100.0,106090.0,7.28060534]
[1749398244545,1.67413102,106100.0,106090.0,7.28060534]
[1749398244959,1.65646656,106100.0,106090.0,7.28060534]
[1749398245268,1.64984239,106100.0,106090.0,7.28060534]
[1749398245692,1.65646655,106100.0,106090.0,7.28060534]
[1749398245830,1.64984239,106100.0,106090.0,7.28060534]
[1749398246249,1.66750684,106100.0,106090.0,7.28060534]
[1749398246471,1.63090024,106100.0,106090.0,7.28060534]
[1749398246692,1.63752444,106100.0,106090.0,7.28060534]
[1749398246920,1.64984239,106100.0,106090.0,7.28060534]
[1749398247312,1.67413104,106100.0,106090.0,7.28060534]
[1749398247439,1.64984239,106100.0,106090.0,7.28060534]
[1749398247641,1.66750688,106100.0,106090.0,7.27960534]
[1749398247842,1.67413106,106100.0,106090.0,7.27960534]
[1749398248043,1.65646657,106100.0,106090.0,7.27960534]
[1749398248294,1.66750689,106100.0,106090.0,7.33945212]
[1749398248492,1.66750689,106100.0,106090.0,7.27960534]
[1749398248692,1.65646657,106100.0,106090.0,7.27960534]
[1749398248975,1.66750689,106100.0,106090.0,7.27960534]
[1749398249117,1.65646662,106100.0,106090.0,7.27960534]
[1749398249527,1.61093798,106100.0,106090.0,7.27960534]
[1749398249727,1.61756218,106100.0,106090.0,7.27960534]
[1749398250112,1.5932733,106100.0,106090.0,7.27960534]
[1749398250280,1.59989753,106100.0,106090.0,7.27960534]
[1749398250487,1.5932733,106100.0,106090.0,7.27960534]
[1749398250693,1.61756222,106100.0,106090.0,7.27960534]
[1749398250889,1.5932733,106100.0,106090.0,7.27960534]
[1749398251038,1.67408795,106100.0,106090.0,7.27960534]
[1749398251245,1.65642323,106100.0,106090.0,7.27960534]
[1749398251484,1.30228801,106100.0,106090.0,7.27960534]
[1749398251816,1.66746408,106100.0,106090.0,7.27960534]
[1749398252042,1.67408914,106100.0,106090.0,7.27960534]
[1749398252236,1.63085809,106100.0,106090.0,7.27960534]
[1749398252443,1.64979895,106100.0,106090.0,7.27960534]
[1749398252851,1.6564238,106100.0,106090.0,7.27960534]
[1749398253078,1.66746531,106100.0,106090.0,7.27960534]
[1749398253350,1.65642385,106100.0,106090.0,7.27960534]
[1749398253577,1.63085868,106100.0,106090.0,7.27960534]
[1749398253780,1.64979895,106100.0,106090.0,7.27960534]
[1749398254050,1.65642385,106100.0,106090.0,7.27960534]
[1749398254485,1.67409029,106100.0,106090.0,7.27960534]
[1749398254637,1.65642386,106100.0,106090.0,7.27960534]
[1749398254808,1.65642394,106100.0,106090.0,7.27960534]
[1749398255007,1.67409058,106100.0,106090.0,7.27960534]
[1749398255251,1.65642385,106100.0,106090.0,7.27960534]
[1749398255428,1.66746537,106100.0,106090.0,7.27960534]
[1749398255633,1.66746618,106100.0,106090.0,7.27960534]
[1749398255833,1.65642419,106100.0,106090.0,7.27960534]
[1749398256041,1.64979895,106100.0,106090.0,7.27960534]
[1749398256379,1.66746646,106100.0,106090.0,7.27960534]
[1749398256588,1.64979895,106100.0,106090.0,7.27960534]
[1749398256932,1.67409308,106100.0,106090.0,7.27960534]
[1749398257141,1.65642462,106100.0,106090.0,7.27960534]
[1749398257541,1.64979895,106100.0,106090.0,7.27960534]
[1749398257980,1.66746735,106100.0,106090.0,7.27960534]
[1749398258185,1.674093,106100.0,106090.0,7.27960534]
[1749398258583,1.6674674,106100.0,106090.0,7.27960534]
[1749398258895,1.67409306,106100.0,106090.0,7.27960534]
[1749398259099,1.65642461,106100.0,106090.0,7.27960534]
[1749398259299,1.6674674,106100.0,106090.0,7.27960534]
[1749398259467,1.67409306,106100.0,106090.0,7.27960534]
[1749398260071,1.67409102,106100.0,106090.0,7.27960534]
[1749398260277,1.64979895,106100.0,106090.0,7.27960534]
[1749398260487,1.67408554,106100.0,106090.0,7.27960534]
[1749398260708,1.65642256,106100.0,106090.0,7.27960534]
[1749398260939,1.67408554,106100.0,106090.0,7.27960534]
[1749398261827,1.66746193,106100.0,106090.0,7.27960534]
[1749398262068,1.67408554,106100.0,106090.0,7.27960534]
[1749398262268,1.66746193,106100.0,106090.0,7.27960534]
[1749398262422,1.67408554,106100.0,106090.0,7.27960534]
[1749398262629,1.67408553,106100.0,106090.0,7.27960534]
[1749398263563,1.67408563,106100.0,106090.0,7.27960534]
[1749398263888,1.65642259,106100.0,106090.0,7.27960534]
[1749398264086,1.64979895,106100.0,106090.0,7.27960534]
[1749398264423,1.67408623,106100.0,106090.0,7.27960534]
[1749398265184,1.67408721,106100.0,106090.0,7.27960534]
[1749398265589,1.67408758,106100.0,106090.0,7.27960534]
[1749398265821,1.64979895,106100.0,106090.0,7.27960534]
[1749398266017,1.65642312,106100.0,106090.0,7.27960534]
[1749398266286,1.66746341,106100.0,106090.0,7.27960534]
[1749398266488,1.67408758,106100.0,106090.0,7.27960534]
[1749398267165,1.68884155,106100.0,106090.0,7.27960534]
[1749398267584,1.68221738,106100.0,106090.0,7.27960534]
[1749398267752,1.68884155,106100.0,106090.0,7.27960534]
[1749398268088,1.66455292,106100.0,106090.0,7.27960534]
[1749398268622,1.68884155,106100.0,106090.0,7.27960534]
[1749398269146,1.6711772,106100.0,106090.0,7.27960534]
[1749398269409,1.67117718,106100.0,106090.0,7.27960534]
[1749398269916,1.68884178,106100.0,106090.0,7.27960534]
[1749398270750,1.68884183,106100.0,106090.0,7.27960534]
[1749398270968,1.68884185,106100.0,106090.0,7.27960534]
[1749398271163,1.67117716,106100.0,106090.0,7.27960534]
[1749398271473,1.66455292,106100.0,106090.0,7.27960534]
[1749398271708,1.67117717,106100.0,106090.0,7.27960534]
[1749398271878,1.6822176,106100.0,106090.0,7.27960534]
[1749398272182,1.68221759,106100.0,106090.0,7.27960534]
[1749398272425,1.68884185,106100.0,106090.0,7.27960534]
[1749398272842,1.6888445,106100.0,106090.0,7.27960534]
[1749398273048,1.66455292,106100.0,106090.0,7.27960534]
[1749398273235,1.68884464,106100.0,106090.0,7.27960534]
[1749398273411,1.68221967,106100.0,106090.0,7.27960534]
[1749398273658,1.68884461,106100.0,106090.0,7.27960534]
[1749398274471,1.67117792,106100.0,106090.0,7.27960534]
[1749398274673,1.68884426,106100.0,106090.0,7.27960534]
[1749398274908,1.68884422,106100.0,106090.0,7.27960534]
[1749398275245,1.68884435,106100.0,106090.0,7.27960534]
[1749398276053,1.67117769,106100.0,106090.0,7.27960534]
[1749398276254,1.67117768,106100.0,106090.0,7.27960534]
[1749398276668,1.68884371,106100.0,106090.0,7.27960534]
[1749398277464,1.67117768,106100.0,106090.0,7.27960534]
[1749398277665,1.68884356,106100.0,106090.0,7.27960534]
[1749398277973,1.6888435,106100.0,106090.0,7.27960534]
[1749398278176,1.68221879,106100.0,106090.0,7.27960534]
[1749398278378,1.62794622,106100.0,106090.0,7.27960534]
[1749398278598,1.65223687,106100.0,106090.0,7.27960534]
[1749398278798,1.64561217,106100.0,106090.0,7.27960534]
[1749398279079,1.6522369,106100.0,106090.0,7.27960534]
[1749398279253,1.6888436,106100.0,106090.0,7.27960534]
[1749398279456,1.68884311,106100.0,106090.0,7.27960534]
[1749398279816,1.67117752,106100.0,106090.0,7.27960534]
[1749398280035,1.66455292,106100.0,106090.0,7.27960534]
[1749398280262,1.68884312,106100.0,106090.0,7.27960534]
[1749398280477,1.68221852,106100.0,106090.0,7.27960534]
[1749398280623,1.68884296,106100.0,106090.0,7.27960534]
[1749398281027,1.68884269,106100.0,106090.0,7.27960534]
[1749398281250,1.68884182,106100.0,106090.0,7.27960534]
[1749398281452,1.68884177,106100.0,106090.0,7.27960534]
[1749398282929,1.68884176,106100.0,106090.0,7.27960534]
[1749398283142,1.66455292,106100.0,106090.0,7.27960534]
[1749398283344,1.68884174,106100.0,106090.0,7.27960534]
[1749398283541,1.68884175,106100.0,106090.0,7.27960534]
[1749398283768,1.66455292,106100.0,106090.0,7.33945212]
[1749398283968,1.68884063,106100.0,106090.0,7.27960534]
[1749398284192,1.65223393,106100.0,106090.0,7.27960534]
[1749398284902,1.64561001,106100.0,106090.0,7.27960534]
[1749398285110,1.65223281,106100.0,106090.0,7.27960534]
[1749398285316,1.62794622,106100.0,106090.0,7.27960534]
[1749398285547,1.6456092,106100.0,106090.0,7.27960534]
[1749398285784,1.6522326,106100.0,106090.0,7.27960534]
[1749398285984,1.27212697,106100.0,106090.0,7.27960534]
[1749398286204,0.89697426,106100.0,106090.0,7.32960534]
[1749398286411,1.09852591,106100.0,106090.0,7.32960534]
[1749398286628,1.45619228,106100.0,106090.0,7.32960534]
[1749398286829,1.43852597,106100.0,106090.0,7.32960534]
[1749398287030,1.44956736,106100.0,106090.0,7.32960534]
[1749398287233,1.42790112,106100.0,106090.0,7.32860534]
[1749398287506,1.44656736,106100.0,106090.0,7.32960534]
[1749398287720,1.43552596,106100.0,106090.0,7.32960534]
[1749398287942,1.4531922,106100.0,106090.0,7.32960534]
[1749398288073,1.43552596,106100.0,106090.0,7.32960534]
[1749398288274,1.42890112,106100.0,106090.0,7.32960534]
[1749398288517,1.4531922,106100.0,106090.0,7.32960534]
[1749398288720,1.42890112,106100.0,106090.0,7.33060534]
[1749398288967,1.43552596,106100.0,106090.0,7.33060534]
[1749398289168,1.42890112,106100.0,106090.0,7.33060534]
[1749398289376,1.44656736,106100.0,106090.0,7.33060534]
[1749398289556,1.44656697,106100.0,106090.0,7.33060534]
[1749398289690,1.45319166,106100.0,106090.0,7.33060534]
[1749398289934,1.45319117,106100.0,106090.0,7.33060534]
[1749398290371,1.43552568,106100.0,106090.0,7.33060534]
[1749398290581,1.42890112,106100.0,106090.0,7.33060534]
[1749398290835,1.45319116,106100.0,106090.0,7.33060534]
[1749398291045,1.45319117,106100.0,106090.0,7.33060534]
[1749398291440,1.42890112,106100.0,106090.0,7.33060534]
[1749398291586,1.44656661,106100.0,106090.0,7.33060534]
[1749398291809,1.45319117,106100.0,106090.0,7.33060534]
[1749398292003,1.43552568,106100.0,106090.0,7.33060534]
[1749398292587,1.43552567,106100.0,106090.0,7.33060534]
[1749398292789,1.42890112,106100.0,106090.0,7.33060534]
[1749398292942,1.45319116,106100.0,106090.0,7.33060534]
[1749398293176,1.44656631,106100.0,106090.0,7.33060534]
[1749398293310,1.40634263,106100.0,106090.0,7.33060534]
[1749398293517,1.43063226,106100.0,106090.0,7.33060534]
[1749398293773,1.42400782,106100.0,106090.0,7.33060534]
[1749398294521,1.43063226,106100.0,106090.0,7.33060534]
[1749398294673,1.40634263,106100.0,106090.0,7.33060534]
[1749398295084,1.43063211,106100.0,106090.0,7.33060534]
[1749398295284,1.41296697,106100.0,106090.0,7.33060534]
[1749398295668,1.43063189,106100.0,106090.0,7.33060534]
[1749398296047,1.40634263,106100.0,106090.0,7.33060534]
[1749398296248,1.42400754,106100.0,106090.0,7.33060534]
[1749398296504,1.40634263,106100.0,106090.0,7.33060534]
[1749398296700,1.4306317,106100.0,106090.0,7.33060534]
[1749398296901,1.40634263,106100.0,106090.0,7.33060534]
[1749398297165,1.42400736,106100.0,106090.0,7.33060534]
[1749398297405,1.42889047,106100.0,106090.0,7.33060534]
[1749398297575,1.43551474,106100.0,106090.0,7.33060534]
[1749398297777,1.45317929,106100.0,106090.0,7.33060534]
[1749398298000,1.45317916,106100.0,106090.0,7.33060534]
[1749398298197,1.42889047,106100.0,106090.0,7.33060534]
[1749398298547,1.4355122,106100.0,106090.0,7.33060534]
[1749398298783,1.48149373,106100.0,106090.0,7.33060534]
[1749398298991,1.57127097,106100.0,106090.0,7.33060534]
[1749398299185,1.57127052,106100.0,106090.0,7.33060534]
[1749398299426,1.5712705,106100.0,106090.0,7.33060534]
[1749398299629,1.55361495,106100.0,106090.0,7.33060534]
[1749398299827,1.57789147,106100.0,106090.0,7.33060534]
[1749398300037,1.57127087,106100.0,106090.0,7.33060534]
[1749398300472,1.56023609,106100.0,106090.0,7.33060534]
[1749398300683,1.55361495,106100.0,106090.0,7.33060534]
[1749398300868,1.57127142,106100.0,106090.0,7.33060534]
[1749398301044,1.57789247,106100.0,106090.0,7.33060534]
[1749398301207,1.55361495,106100.0,106090.0,7.33060534]
[1749398301413,1.56984307,106100.0,106090.0,7.33060534]
[1749398301610,1.5588078,106100.0,106090.0,7.33060534]
[1749398301852,1.57646447,106100.0,106090.0,7.33060534]
[1749398302524,1.55218655,106100.0,106090.0,7.33060534]
[1749398302724,1.5588078,106100.0,106090.0,7.33060534]
[1749398302929,1.57646444,106100.0,106090.0,7.33060534]
[1749398303153,1.5764638,106100.0,106090.0,7.33060534]
[1749398303352,1.56984259,106100.0,106090.0,7.33060534]
[1749398303556,1.55218655,106100.0,106090.0,7.33060534]
[1749398303898,1.56984221,106100.0,106090.0,7.33060534]
[1749398304037,1.55880856,106100.0,106090.0,7.33060534]
[1749398304235,1.55218655,106100.0,106090.0,7.33060534]
[1749398304443,1.5764672,106100.0,106090.0,7.33060534]
[1749398304640,1.55880789,106100.0,106090.0,7.33060534]
[1749398304850,1.56984142,106100.0,106090.0,7.33060534]
[1749398305075,1.55880705,106100.0,106090.0,7.33060534]
[1749398305273,1.55218655,106100.0,106090.0,7.33060534]
[1749398305474,1.55880679,106100.0,106090.0,7.33060534]
[1749398305676,1.57641249,106100.0,106090.0,7.33060534]
[1749398305916,1.55218655,106100.0,106090.0,7.33060534]
[1749398306486,1.55879352,106100.0,106090.0,7.33060534]
[1749398306823,1.57641207,106100.0,106090.0,7.33060534]
[1749398307033,1.56980511,106100.0,106090.0,7.33060534]
[1749398307248,1.57641207,106100.0,106090.0,7.33060534]
[1749398307671,1.55218655,106100.0,106090.0,7.33060534]
[1749398307877,1.57640494,106100.0,106090.0,7.33060534]
[1749398308131,1.57640538,106100.0,106090.0,7.33060534]
[1749398308337,1.55879194,106100.0,106090.0,7.33060534]
[1749398308510,1.55218655,106100.0,106090.0,7.33060534]
[1749398308735,1.56980179,106100.0,106090.0,7.33060534]
[1749398308928,1.57640742,106100.0,106090.0,7.33060534]
[1749398309138,1.56980191,106100.0,106090.0,7.33060534]
[1749398309340,1.57640767,106100.0,106090.0,7.33060534]
[1749398309476,1.56979259,106100.0,106090.0,7.33060534]
[1749398309680,1.57639491,106100.0,106090.0,7.33060534]
[1749398309923,1.56979252,106100.0,106090.0,7.33060534]
[1749398310131,1.57639606,106100.0,106090.0,7.33060534]
[1749398310331,1.55218655,106100.0,106090.0,7.33060534]
[1749398310587,1.55878954,106100.0,106090.0,7.33060534]
[1749398310756,1.57639752,106100.0,106090.0,7.33060534]
[1749398310932,1.55878959,106100.0,106090.0,7.33060534]
[1749398311137,1.57639895,106100.0,106090.0,7.33060534]
[1749398311338,1.56979558,106100.0,106090.0,7.33060534]
[1749398311561,1.55879001,106100.0,106090.0,7.33060534]
[1749398311964,1.57639953,106100.0,106090.0,7.33060534]
[1749398312113,1.56979604,106100.0,106090.0,7.33060534]
[1749398312313,1.55879002,106100.0,106090.0,7.33060534]
[1749398312551,1.57639939,106100.0,106090.0,7.33060534]
[1749398312765,1.55879003,106100.0,106090.0,7.33060534]
[1749398312965,1.57639932,106100.0,106090.0,7.33060534]
[1749398313320,1.60466236,106100.0,106090.0,7.33060534]
[1749398313838,1.59805899,106100.0,106090.0,7.33060534]
[1749398314032,1.58044959,106100.0,106090.0,7.33060534]
[1749398314250,1.60466671,106100.0,106090.0,7.33060534]
[1749398314396,1.59811295,106100.0,106090.0,7.33060534]
[1749398314599,1.58707336,106100.0,106090.0,7.33060534]
[1749398314808,1.60473676,106100.0,106090.0,7.33060534]
[1749398315013,1.58707359,106100.0,106090.0,7.33060534]
[1749398315247,1.58044959,106100.0,106090.0,7.33060534]
[1749398315447,1.58707383,106100.0,106090.0,7.33060534]
[1749398315666,1.58044959,106100.0,106090.0,7.33060534]
[1749398315802,1.587074,106100.0,106090.0,7.33060534]
[1749398316006,1.60473911,106100.0,106090.0,7.33060534]
[1749398316207,1.5981147,106100.0,106090.0,7.33060534]
[1749398316443,1.587074,106100.0,106090.0,7.33060534]
[1749398316790,1.58044959,106100.0,106090.0,7.33060534]
[1749398316962,1.60473917,106100.0,106090.0,7.33060534]
[1749398317136,1.58044959,106100.0,106090.0,7.33060534]
[1749398317344,1.60473917,106100.0,106090.0,7.33060534]
[1749398317543,1.58707402,106100.0,106090.0,7.33060534]
[1749398317723,1.58044959,106100.0,106090.0,7.33060534]
[1749398317932,1.59811474,106100.0,106090.0,7.33060534]
[1749398318134,1.60473917,106100.0,106090.0,7.33060534]
[1749398318345,1.59811474,106100.0,106090.0,7.33060534]
[1749398318688,1.58707507,106100.0,106090.0,7.33060534]
[1749398318920,1.58044959,106100.0,106090.0,7.33060534]
[1749398319132,1.60474652,106100.0,106090.0,7.33060534]
[1749398319340,1.60474728,106100.0,106090.0,7.33060534]
[1749398319546,1.60474779,106100.0,106090.0,7.33060534]
[1749398319755,1.58707682,106100.0,106090.0,7.33060534]
[1749398319968,1.58707691,106100.0,106090.0,7.33060534]
[1749398320426,1.60474998,106100.0,106090.0,7.33060534]
[1749398320667,1.59812259,106100.0,106090.0,7.33060534]
[1749398320882,1.58044959,106100.0,106090.0,7.33060534]
[1749398321084,1.60474996,106100.0,106090.0,7.33060534]
[1749398321294,1.59812259,106100.0,106090.0,7.33060534]
[1749398321501,1.58707697,106100.0,106090.0,7.33060534]
[1749398321707,1.60474996,106100.0,106090.0,7.33060534]
[1749398321923,1.58707696,106100.0,106090.0,7.33060534]
[1749398322127,1.58044959,106100.0,106090.0,7.33060534]
[1749398322341,1.60474995,106100.0,106090.0,7.33060534]
[1749398322543,1.58707696,106100.0,106090.0,7.33060534]
[1749398322768,1.60474995,106100.0,106090.0,7.33060534]
[1749398323525,1.62242294,106100.0,106090.0,7.33060534]
[1749398323731,1.61579557,106100.0,106090.0,7.33060534]
[1749398323958,1.60474995,106100.0,106090.0,7.33060534]
[1749398324159,1.59812258,106100.0,106090.0,7.33060534]
[1749398324359,1.60474994,106100.0,106090.0,7.33060534]
[1749398324581,1.60474998,106100.0,106090.0,7.33060534]
[1749398324782,1.59812258,106100.0,106090.0,7.33060534]
[1749398325131,1.60474997,106100.0,106090.0,7.33060534]
[1749398325337,1.60475001,106100.0,106090.0,7.33060534]
[1749398325538,1.59812258,106100.0,106090.0,7.33060534]
[1749398325759,1.60474986,106100.0,106090.0,7.33060534]
[1749398325961,1.6224216,106100.0,106090.0,7.33060534]
[1749398326163,1.62242131,106100.0,106090.0,7.33060534]
[1749398326337,1.59812258,106100.0,106090.0,7.33060534]
[1749398326667,1.60474943,106100.0,106090.0,7.33060534]
[1749398327056,1.60474941,106100.0,106090.0,7.33060534]
[1749398327267,1.6358056,106100.0,106090.0,7.33060534]
[1749398327466,1.65347731,106100.0,106090.0,7.33060534]
[1749398327701,1.64243249,106100.0,106090.0,7.33060534]
[1749398328322,1.66010414,106100.0,106090.0,7.33060534]
[1749398328529,1.66010415,106100.0,106090.0,7.33060534]
[1749398328679,1.65347727,106100.0,106090.0,7.33060534]
[1749398328880,1.62242051,106100.0,106090.0,7.39045212]
[1749398329094,0.73728258,106100.0,106090.0,7.33060534]
[1749398329297,0.9841981,106100.0,106090.0,7.33060534]
[1749398329559,0.99081942,106100.0,106090.0,7.33060534]
[1749398329984,0.2725581,106100.0,106090.0,7.33060534]
[1749398330255,0.19060662,106100.0,106090.0,8.31255684]
[1749398330506,0.20945791,106100.0,106090.0,7.71208482]
[1749398330749,0.19179673,106100.0,106090.0,7.71208482]
[1749398330989,0.20845801,106100.0,106090.0,7.71108482]
[1749398331245,0.20945801,106100.0,106090.0,7.71308482]
[1749398331924,0.19179673,106100.0,106090.0,7.71308482]
[1749398332177,0.20945801,106100.0,106090.0,7.71308482]
[1749398332677,0.20945801,106100.0,106090.0,7.71208482]
[1749398332914,0.21045801,106100.0,106090.0,7.71408482]
[1749398333439,0.21045801,106100.0,106090.0,7.42900482]
[1749398333651,0.21045801,106100.0,106090.0,7.71404482]
[1749398333652,0.21045799,106100.0,106090.0,7.71404482]
[1749398334070,0.21045794,106100.0,106090.0,7.71404482]
[1749398334272,0.19279673,106100.0,106090.0,7.71404482]
[1749398334474,0.21045895,106100.0,106090.0,7.71404482]
[1749398334678,0.21046077,106100.0,106090.0,7.71404482]
[1749398334880,0.21046103,106100.0,106090.0,7.71404482]
[1749398335085,0.21046149,106100.0,106090.0,7.71404482]
[1749398335745,0.19279673,106100.0,106090.0,7.71404482]
[1749398335924,0.21046303,106100.0,106090.0,7.71404482]
[1749398336151,0.21046327,106100.0,106090.0,7.71404482]
[1749398336324,0.21046407,106100.0,106090.0,7.42900482]
[1749398336526,0.21046412,106100.0,106090.0,7.42900482]
[1749398336751,0.21046425,106100.0,106090.0,7.42900482]
[1749398336952,0.21046414,106100.0,106090.0,7.42900482]
[1749398337101,0.21046423,106100.0,106090.0,7.42900482]
[1749398337815,0.21046429,106100.0,106090.0,7.42900482]
[1749398338237,0.19279673,106100.0,106090.0,7.42900482]
[1749398359066,0.21041427,106100.0,106090.0,7.42900482]
[1749398359422,0.19279673,106100.0,106090.0,7.42900482]
[1749398360229,0.21046125,106100.0,106090.0,7.42900482]
[1749398361569,0.21046125,106100.0,106090.0,7.33260534]